bitfinex-derivatives/quotes_BTCF0:USTF0_20250411
["timestamp","ask_amount","ask_price","bid_price","bid_amount"]
[1744386678381,0.0606708,82455.0,82449.0,0.0606723]
[1744386678382,0.1820149,82452.0,82451.0,0.0606711]
[1744386678785,0.242686,82452.0,82451.0,0.0606711]
[1744386678968,0.1820193,82449.0,82448.0,0.1213462]
[1744386679374,0.1820193,82449.0,82448.0,0.0993462]
[1744386679573,0.1820193,82449.0,82448.0,0.0993862]
[1744386679779,0.0606719,82450.0,82449.0,0.1213453]
[1744386680175,0.0607119,82450.0,82449.0,0.13775675]
[1744386680582,4e-05,82450.0,82449.0,0.13775675]
[1744386680982,4e-05,82450.0,82449.0,0.20775675]
[1744386681184,0.1213838,82450.0,82449.0,0.08641145]
[1744386681383,4e-05,82450.0,82449.0,0.20775675]
[1744386681585,0.1213838,82450.0,82449.0,0.20779675]
[1744386681979,0.1213438,82450.0,82449.0,0.20793188]
[1744386682275,0.1213838,82450.0,82449.0,0.20793188]
[1744386682476,0.0606631,82462.0,82458.0,0.121332]
[1744386682780,0.12138461,82459.0,82458.0,0.56867858]
[1744386682978,0.0606639,82461.0,82459.0,0.1213306]
[1744386683184,0.0606639,82461.0,82459.0,0.20787718]
[1744386683385,0.12151101,82460.0,82459.0,0.20787718]
[1744386683988,0.12151101,82460.0,82459.0,0.27907718]
[1744386684875,0.12151101,82460.0,82459.0,0.27884391]
[1744386685269,0.12151101,82460.0,82459.0,0.27885012]
[1744386685471,0.12151101,82460.0,82459.0,0.27889012]
[1744386686374,0.00018191,82460.0,82459.0,0.27889012]
[1744386686975,0.00018191,82460.0,82459.0,0.25685012]
[1744386687180,0.00018191,82460.0,82459.0,0.25678898]
[1744386687384,0.00018191,82460.0,82459.0,0.33158898]
[1744386687583,0.00022191,82460.0,82459.0,0.33158898]
[1744386688088,0.00022191,82460.0,82459.0,0.34136658]
[1744386688883,0.00022191,82460.0,82459.0,0.3251482]
[1744386689079,0.48258225,82460.0,82459.0,0.0798176]
[1744386689277,0.48258225,82460.0,82459.0,0.0098176]
[1744386689473,0.62848225,82460.0,82459.0,0.0097776]
[1744386689680,0.1213467,82448.0,82445.0,9.841e-05]
[1744386689875,0.1213467,82448.0,82446.0,0.0715]
[1744386690081,0.1820201,82448.0,82447.0,0.1213882]
[1744386690276,0.1319132,82457.0,82447.0,0.1213882]
[1744386690277,0.1820127,82456.0,82455.0,0.1819988]
[1744386690584,0.18228394,82456.0,82455.0,0.1819988]
[1744386691499,0.06094104,82456.0,82455.0,0.1819988]
[1744386691690,0.0607098,82456.0,82455.0,0.1819988]
[1744386692394,0.1298098,82456.0,82455.0,0.1819988]
[1744386692989,4e-05,82456.0,82455.0,0.1819988]
[1744386694797,0.121375,82456.0,82455.0,0.1599988]
[1744386694990,0.192375,82456.0,82455.0,0.1599988]
[1744386695402,0.19260624,82456.0,82455.0,0.1599988]
[1744386695589,0.26380624,82456.0,82455.0,0.1599988]
[1744386695997,4e-05,82456.0,82455.0,0.5207988]
[1744386696299,5.401e-05,82469.0,82467.0,0.1213188]
[1744386696600,5.401e-05,82469.0,82467.0,0.4821188]
[1744386697095,0.1213044,82477.0,82467.0,0.6229188]
[1744386697295,0.14468399,82468.0,82467.0,0.6229188]
[1744386697903,0.14464399,82468.0,82467.0,0.6229188]
[1744386698108,0.10802859,82468.0,82467.0,0.8729188]
[1744386698396,0.00018191,82476.0,82473.0,0.12131]
[1744386698600,0.00018191,82476.0,82473.0,0.50751]
[1744386698801,0.18135986,82491.0,82483.0,0.1212952]
[1744386699007,0.18135986,82491.0,82483.0,0.13338293]
[1744386699201,0.00504,82484.0,82483.0,0.13338293]
[1744386699399,0.00504,82484.0,82483.0,0.27938293]
[1744386700808,0.18135986,82491.0,82490.0,0.121285]
[1744386700995,0.18135986,82491.0,82490.0,0.868285]
[1744386700996,0.08575196,82491.0,82490.0,0.868285]
[1744386701203,0.00018191,82492.0,82491.0,0.1212835]
[1744386701601,0.00022191,82492.0,82491.0,0.5172835]
[1744386702015,0.18247049,82497.0,82496.0,0.1212761]
[1744386702311,0.005,82510.0,82500.0,0.1212703]
[1744386702503,0.0656279,82510.0,82500.0,0.2028303]
[1744386702811,0.03884,82501.0,82500.0,0.2120128]
[1744386703113,0.1601088,82501.0,82500.0,0.1154528]
[1744386704508,0.1601088,82501.0,82500.0,0.1304528]
[1744386704702,0.2360088,82501.0,82500.0,0.0091825]
[1744386704898,0.2360088,82501.0,82490.0,0.3862]
[1744386704899,0.1819244,82493.0,82492.0,0.121282]
[1744386705408,0.3291244,82493.0,82492.0,0.121282]
[1744386705605,0.3291244,82493.0,82492.0,0.195482]
[1744386705803,0.32935564,82493.0,82492.0,0.121282]
[1744386706010,0.1212835,82491.0,82490.0,0.0606418]
[1744386706211,0.1212923,82486.0,82485.0,0.1212912]
[1744386706599,0.1212952,82483.0,82482.0,0.00942354]
[1744386706808,0.48232644,82483.0,82482.0,0.00018191]
[1744386707111,0.12152644,82483.0,82482.0,0.00018191]
[1744386707298,0.12152644,82483.0,82482.0,0.12147861]
[1744386707709,0.48232644,82483.0,82482.0,0.00018191]
[1744386707911,0.48232644,82483.0,82479.0,0.00902977]
[1744386707912,0.1212997,82480.0,82479.0,0.00902977]
[1744386708112,0.1213085,82474.0,82473.0,0.12146999]
[1744386708301,0.48233974,82474.0,82473.0,0.12146999]
[1744386708901,0.55353974,82474.0,82473.0,0.12146999]
[1744386710200,0.55353974,82474.0,82473.0,0.10146999]
[1744386710400,0.49288614,82474.0,82470.0,4e-05]
[1744386710602,0.12154414,82471.0,82470.0,0.1820072]
[1744386711000,0.1213129,82471.0,82470.0,0.1820072]
[1744386711404,0.1213129,82471.0,82470.0,0.3281072]
[1744386711711,0.12154414,82471.0,82470.0,0.0606958]
[1744386711908,0.12158414,82471.0,82470.0,0.0606558]
[1744386712110,0.1964529,82471.0,82470.0,0.0606558]
[1744386712312,0.1964529,82471.0,82470.0,0.2045558]
[1744386712608,0.2654529,82471.0,82470.0,0.2045558]
[1744386712810,0.2654529,82471.0,82470.0,0.2045958]
[1744386713911,0.1964529,82471.0,82470.0,0.2045958]
[1744386716004,0.07514,82471.0,82470.0,0.2045958]
[1744386716207,4e-05,82471.0,82470.0,0.2045958]
[1744386716403,0.1468,82481.0,82480.0,0.1212997]
[1744386716614,0.1928993,82481.0,82480.0,0.1212997]
[1744386717015,0.2680993,82481.0,82480.0,0.2655997]
[1744386717514,0.1964993,82481.0,82480.0,0.1212997]
[1744386717816,0.1964993,82481.0,82480.0,0.2676997]
[1744386718017,0.1964993,82481.0,82480.0,0.2456997]
[1744386718218,0.2673993,82481.0,82480.0,0.2456997]
[1744386719021,0.1964993,82481.0,82480.0,0.2456997]
[1744386719406,0.2673993,82481.0,82480.0,0.0992997]
[1744386721020,0.1213055,82476.0,82475.0,0.2677051]
[1744386721222,0.1819686,82473.0,82472.0,0.1213098]
[1744386721518,0.2426243,82473.0,82472.0,0.0606542]
[1744386721720,0.24285554,82473.0,82472.0,0.0606542]
[1744386722022,0.38855554,82473.0,82472.0,0.0606542]
[1744386722208,0.0761,82473.0,82472.0,0.0606542]
[1744386722414,0.1213011,82480.0,82479.0,0.1213011]
[1744386722716,0.1974011,82480.0,82479.0,0.1213011]
[1744386722911,0.1974011,82480.0,82479.0,0.2694011]
[1744386723110,4e-05,82480.0,82479.0,0.2694011]
[1744386723420,0.1212899,82487.0,82486.0,0.1212908]
[1744386723619,0.1212899,82487.0,82486.0,0.2693908]
[1744386723813,0.1819554,82480.0,82470.0,0.0701]
[1744386724009,0.0606533,82476.0,82473.0,0.0606548]
[1744386724217,0.1213144,82470.0,82468.0,0.00922267]
[1744386724413,0.1213144,82470.0,82469.0,0.07625028]
[1744386724608,0.2662144,82470.0,82469.0,0.07629028]
[1744386724813,0.2662144,82470.0,82469.0,0.14519028]
[1744386725323,0.2662144,82470.0,82469.0,0.26650608]
[1744386725523,0.0715,82470.0,82469.0,0.26650608]
[1744386725822,0.0606543,82474.0,82473.0,0.1819612]
[1744386726126,0.0606543,82474.0,82473.0,0.2426154]
[1744386726919,0.1370543,82474.0,82473.0,0.2426154]
[1744386727309,0.2105543,82474.0,82473.0,0.2426154]
[1744386728026,0.2105543,82474.0,82469.0,4e-05]
[1744386728027,0.1213144,82470.0,82469.0,4e-05]
[1744386728317,0.12154564,82470.0,82469.0,4e-05]
[1744386728522,0.12154564,82470.0,82465.0,0.00018191]
[1744386728523,0.1213158,82469.0,82468.0,0.0606586]
[1744386728719,0.1819797,82467.0,82466.0,0.1213189]
[1744386729112,0.54301094,82467.0,82466.0,0.1213189]
[1744386729313,0.1819797,82467.0,82466.0,0.1213189]
[1744386729519,0.2583797,82467.0,82466.0,0.1213189]
[1744386729915,0.25861094,82467.0,82466.0,0.1213189]
[1744386730125,0.25865094,82467.0,82466.0,0.1213189]
[1744386730428,0.25865094,82467.0,82466.0,0.1919189]
[1744386730622,0.25865094,82467.0,82466.0,0.1919589]
[1744386731519,0.25865094,82467.0,82466.0,0.2676589]
[1744386731916,0.13733064,82467.0,82466.0,0.2676589]
[1744386732127,0.06093064,82467.0,82466.0,0.2676589]
[1744386732624,0.13243064,82467.0,82466.0,0.2676589]
[1744386732820,4e-05,82467.0,82466.0,0.2676589]
[1744386733020,0.1328557,82473.0,82472.0,0.1213114]
[1744386733325,0.1328557,82473.0,82472.0,0.2645114]
[1744386733512,0.1328557,82473.0,82472.0,0.2425114]
[1744386733713,0.0722,82473.0,82472.0,0.2425114]
[1744386733913,5.401e-05,82474.0,82473.0,0.12131]
[1744386734121,5.401e-05,82474.0,82473.0,0.19011]
[1744386734322,0.12136251,82474.0,82473.0,0.26451]
[1744386734523,0.0606524,82477.0,82476.0,0.1213055]
[1744386734925,0.0606524,82477.0,82476.0,0.2645055]
[1744386735122,0.1328524,82477.0,82476.0,0.2645055]
[1744386736032,0.14423124,82477.0,82467.0,0.0606588]
[1744386736218,0.1213188,82468.0,82467.0,0.0606588]
[1744386736416,0.12155004,82468.0,82467.0,0.0606588]
[1744386736824,0.0606519,82478.0,82472.0,0.0606556]
[1744386737025,0.1349529,82476.0,82475.0,0.1819568]
[1744386737336,0.1213173,82468.0,82467.0,4e-05]
[1744386737630,0.1213203,82466.0,82465.0,0.00912794]
[1744386737816,0.12155154,82466.0,82465.0,0.00912794]
[1744386738023,0.12155154,82466.0,82465.0,0.12150361]
[1744386738223,0.26765154,82466.0,82465.0,0.12150361]
[1744386738634,0.26765154,82466.0,82465.0,0.12154361]
[1744386739130,0.26765154,82466.0,82465.0,0.19194361]
[1744386740022,0.26769154,82466.0,82465.0,0.19194361]
[1744386740630,0.19589154,82466.0,82465.0,0.19194361]
[1744386740926,0.27169154,82466.0,82465.0,0.20094023]
[1744386741134,0.27169154,82466.0,82465.0,0.17894023]
[1744386741427,0.27169154,82466.0,82465.0,0.10854023]
[1744386742222,0.27169154,82466.0,82465.0,4e-05]
[1744386742425,0.1213261,82462.0,82461.0,0.1213274]
[1744386742623,0.1213276,82461.0,82460.0,7.29e-05]
[1744386742830,0.2679276,82461.0,82460.0,7.29e-05]
[1744386743019,0.20749504,82461.0,82460.0,0.1213291]
[1744386743220,0.0712,82461.0,82460.0,0.1944691]
[1744386743622,0.07124,82461.0,82460.0,0.1944691]
[1744386745124,4e-05,82461.0,82460.0,0.1944691]
[1744386745527,0.2559725,82471.0,82470.0,0.1213144]
[1744386745718,0.07407291,82471.0,82470.0,0.1213144]
[1744386745919,0.1953129,82471.0,82470.0,0.5515144]
[1744386746127,0.1953529,82471.0,82470.0,0.5515144]
[1744386747739,4e-05,82471.0,82470.0,0.5515144]
[1744386747926,0.12149111,82474.0,82473.0,0.12131]
[1744386748132,0.00018191,82474.0,82473.0,0.19071]
[1744386748926,0.00018191,82474.0,82473.0,0.16871]
[1744386749126,0.00022191,82474.0,82473.0,0.16871]
[1744386749934,0.00018191,82474.0,82473.0,0.16871]
[1744386750326,0.065647,82484.0,82473.0,0.16871]
[1744386750327,5.401e-05,82481.0,82480.0,0.1212997]
[1744386750525,0.005,82484.0,82483.0,0.1212952]
[1744386751034,0.005,82484.0,82483.0,0.1906952]
[1744386751221,0.00504,82484.0,82483.0,0.2611952]
[1744386752531,0.21736526,82491.0,82490.0,0.121285]
[1744386752734,0.21736526,82491.0,82490.0,0.482085]
[1744386752935,0.01910883,82501.0,82496.0,0.0606376]
[1744386753135,0.01910883,82501.0,82500.0,0.1212703]
[1744386753325,9.842e-05,82503.0,82502.0,0.1212673]
[1744386753531,0.21736526,82504.0,82503.0,0.1212658]
[1744386753934,0.21736526,82504.0,82503.0,0.1917658]
[1744386754236,0.21740526,82504.0,82503.0,0.2643658]
[1744386755133,0.21736526,82504.0,82503.0,0.2643658]
[1744386755334,0.00018191,82512.0,82509.0,0.121257]
[1744386755635,0.00504,82510.0,82509.0,0.4911419]
[1744386755829,0.00018191,82512.0,82511.0,0.1212541]
[1744386756031,0.0742,82525.0,82524.0,0.121235]
[1744386756231,7.291e-05,82532.0,82528.0,0.0606138]
[1744386756433,7.291e-05,82532.0,82531.0,0.1212247]
[1744386756834,0.00020578,82532.0,82531.0,0.1938247]
[1744386757034,0.005,82536.0,82535.0,0.1212188]
[1744386757226,0.1262174,82536.0,82535.0,0.1212188]
[1744386757426,0.12644864,82536.0,82535.0,0.1212188]
[1744386758027,0.20188864,82536.0,82535.0,0.1212188]
[1744386760134,0.08067124,82536.0,82535.0,0.1212188]
[1744386760334,0.08067124,82536.0,82535.0,0.13298083]
[1744386760641,0.00527124,82536.0,82535.0,0.13298083]
[1744386760829,0.07707124,82536.0,82535.0,0.13298083]
[1744386761035,0.07707124,82536.0,82535.0,0.20238083]
[1744386761234,0.07707124,82536.0,82535.0,0.27258083]
[1744386761739,0.19824864,82536.0,82535.0,0.2608188]
[1744386761943,0.19824864,82536.0,82535.0,0.1212188]
[1744386762643,0.00523124,82536.0,82535.0,0.13312622]
[1744386763139,0.00527124,82536.0,82535.0,0.13312622]
[1744386763441,0.00527124,82536.0,82535.0,0.27852622]
[1744386763944,0.1212247,82532.0,82531.0,0.1818359]
[1744386764151,0.00023124,82531.0,82526.0,0.01190983]
[1744386764437,0.4820306,82527.0,82526.0,0.01190983]
[1744386764637,0.121235,82524.0,82523.0,0.0001818]
[1744386764844,0.12146624,82524.0,82523.0,0.0001818]
[1744386765434,0.1212556,82510.0,82502.0,0.074]
[1744386765630,0.18211594,82510.0,82509.0,0.121257]
[1744386765834,0.18211594,82510.0,82509.0,0.13031421]
[1744386766035,0.181898,82504.0,82503.0,0.1212649]
[1744386766341,0.073,82512.0,82511.0,0.1212541]
[1744386766538,0.1942526,82512.0,82511.0,0.0992541]
[1744386766939,0.19448384,82512.0,82511.0,0.0992541]
[1744386767143,0.07323124,82512.0,82511.0,0.0992541]
[1744386767345,0.073,82512.0,82511.0,0.2441541]
[1744386769046,0.07304,82512.0,82511.0,0.2441541]
[1744386770641,0.0001818,82520.0,82519.0,0.1212423]
[1744386770837,0.0001818,82520.0,82519.0,0.4820423]
[1744386771038,0.0001818,82520.0,82519.0,0.5513423]
[1744386771341,0.0002218,82520.0,82519.0,0.5513423]
[1744386771543,0.0716,82534.0,82533.0,0.1212218]
[1744386771740,0.0716,82534.0,82533.0,0.1905218]
[1744386771940,0.07164,82534.0,82533.0,0.1905218]
[1744386772549,0.07164,82534.0,82533.0,0.2028118]
[1744386772738,0.0716,82534.0,82533.0,0.2028118]
[1744386772942,0.07164,82534.0,82533.0,0.2028118]
[1744386774235,0.07164,82534.0,82533.0,0.1868118]
[1744386776843,0.0716,82534.0,82533.0,0.1868118]
[1744386780943,0.1212262,82530.0,82529.0,0.3608]
[1744386781149,0.12145744,82530.0,82529.0,0.3608]
[1744386781351,0.26745744,82530.0,82529.0,0.3608]
[1744386781542,0.20684474,82530.0,82527.0,0.3608]
[1744386781746,0.1212291,82528.0,82527.0,0.5426422]
[1744386781948,0.00023124,82528.0,82527.0,0.5426422]
[1744386782154,0.0724,82530.0,82529.0,0.1212276]
[1744386782754,0.005,82536.0,82535.0,0.1212188]
[1744386782954,0.005,82536.0,82535.0,0.5488188]
[1744386783156,0.00523124,82536.0,82535.0,0.5488188]
[1744386783750,0.00527124,82536.0,82535.0,0.5488188]
[1744386784156,0.07527124,82536.0,82535.0,0.5488188]
[1744386785650,0.1212247,82531.0,82530.0,0.1818366]
[1744386785847,0.0606153,82527.0,82524.0,0.1565769]
[1744386786054,0.18826324,82526.0,82525.0,0.1214138]
[1744386786252,0.32796324,82526.0,82525.0,0.1214138]
[1744386787160,0.32796324,82526.0,82525.0,0.0001818]
[1744386788659,0.68876324,82526.0,82525.0,0.0001818]
[1744386789858,0.12147354,82519.0,82518.0,0.0994242]
[1744386790053,0.12147794,82516.0,82515.0,0.0606238]
[1744386790454,0.1818738,82515.0,82514.0,0.1212496]
[1744386790654,0.5426738,82515.0,82514.0,0.1212496]
[1744386790852,0.121257,82509.0,82508.0,0.33488886]
[1744386791053,0.12148824,82509.0,82508.0,0.33488886]
[1744386791256,0.26518824,82509.0,82508.0,0.33488886]
[1744386791459,0.26518824,82509.0,82508.0,0.21363136]
[1744386791757,0.12126,82507.0,82506.0,0.0608119]
[1744386791961,0.12149124,82507.0,82506.0,0.0608119]
[1744386792159,0.26519124,82507.0,82506.0,0.0608119]
[1744386792550,0.26519124,82507.0,82506.0,0.0001818]
[1744386793753,0.1212703,82500.0,82499.0,4e-05]
[1744386793958,0.12150294,82499.0,82498.0,0.00036692]
[1744386794161,0.25540294,82499.0,82498.0,0.00036692]
[1744386794762,0.25540294,82499.0,82495.0,0.21848011]
[1744386794763,0.50540294,82499.0,82495.0,0.21848011]
[1744386795063,0.1213041,82477.0,82476.0,0.21399805]
[1744386795460,0.12153534,82477.0,82476.0,0.21399805]
[1744386796060,0.25543534,82477.0,82476.0,0.21399805]
[1744386797557,0.25543534,82477.0,82476.0,0.19199805]
[1744386797766,0.25543534,82477.0,82476.0,0.19203805]
[1744386798467,0.25547534,82477.0,82476.0,0.19203805]
[1744386798665,0.25547534,82477.0,82476.0,4e-05]
[1744386799768,0.25547534,82477.0,82476.0,0.06144]
[1744386800562,0.1213177,82468.0,82466.0,0.17302977]
[1744386800772,0.1213188,82467.0,82466.0,0.05171007]
[1744386801271,0.0606586,82469.0,82466.0,0.17302947]
[1744386801571,0.1213173,82468.0,82466.0,0.17302987]
[1744386801967,4e-05,82477.0,82466.0,0.30171007]
[1744386802270,4e-05,82477.0,82476.0,0.4821055]
[1744386802463,0.1853998,82480.0,82476.0,0.4821055]
[1744386802670,0.1213017,82479.0,82477.0,0.1213029]
[1744386802861,0.0606493,82481.0,82476.0,0.3608]
[1744386803062,0.068,82484.0,82483.0,0.1212952]
[1744386803565,0.00504,82484.0,82483.0,0.1212952]
[1744386803765,0.1213041,82477.0,82476.0,0.3608]
[1744386803971,0.12153534,82477.0,82476.0,0.3608]
[1744386804558,0.25183534,82477.0,82476.0,0.3608]
[1744386804868,0.063,82477.0,82476.0,0.4821455]
[1744386805168,0.06304,82477.0,82476.0,0.4601455]
[1744386805472,0.06304,82477.0,82476.0,0.5871455]
[1744386805669,0.1843441,82477.0,82476.0,0.2483455]
[1744386807971,0.1843441,82477.0,82476.0,4e-05]
[1744386808272,0.2460441,82477.0,82476.0,4e-05]
[1744386808468,0.121307,82475.0,82474.0,0.0664]
[1744386808672,0.121307,82475.0,82474.0,0.1279]
[1744386808868,0.250707,82475.0,82474.0,0.1279]
[1744386809468,0.250707,82475.0,82474.0,0.2492085]
[1744386810066,4e-05,82477.0,82476.0,0.1213055]
[1744386810474,4e-05,82477.0,82476.0,0.2567055]
[1744386811068,0.1212998,82480.0,82479.0,0.1819502]
[1744386811570,0.1892998,82480.0,82479.0,0.0606505]
[1744386811778,0.1213046,82478.0,82477.0,0.1213036]
[1744386812071,0.068,82480.0,82479.0,0.1213011]
[1744386812771,0.068094,82480.0,82479.0,0.1213011]
[1744386812963,0.1893937,82480.0,82479.0,0.0993011]
[1744386813672,0.068094,82480.0,82479.0,0.4601011]
[1744386813973,0.000134,82480.0,82479.0,0.4601011]
[1744386814473,9.4e-05,82480.0,82479.0,0.4601011]
[1744386814781,0.000134,82480.0,82479.0,0.4601011]
[1744386816376,0.0606098,82535.0,82518.0,0.1212438]
[1744386816671,5.401e-05,82521.0,82518.0,0.5778438]
[1744386816865,0.0627,82530.0,82518.0,0.5778438]
[1744386817071,0.01238,82519.0,82518.0,0.5778438]
[1744386817971,0.01238,82519.0,82518.0,0.4820438]
[1744386818572,0.1336223,82519.0,82518.0,0.4820438]
[1744386819274,0.07888,82519.0,82518.0,0.4820438]
[1744386820566,0.07888,82519.0,82518.0,0.4670438]
[1744386820766,0.14208,82519.0,82518.0,0.4670438]
[1744386820969,0.01238,82519.0,82518.0,0.47606436]
[1744386821373,0.01234,82519.0,82518.0,0.47606436]
[1744386821676,0.0642,82526.0,82525.0,0.1212335]
[1744386821978,0.0642,82526.0,82525.0,0.4820335]
[1744386822177,0.06424,82526.0,82525.0,0.4820335]
[1744386823476,0.185472,82526.0,82525.0,0.4820335]
[1744386823671,0.251072,82526.0,82525.0,0.4820335]
[1744386823873,0.12984,82526.0,82525.0,0.5777935]
[1744386824275,0.06424,82526.0,82525.0,0.5777935]
[1744386824477,0.005,82536.0,82526.0,0.121232]
[1744386824679,0.0623,82535.0,82526.0,0.185132]
[1744386825185,0.1212218,82533.0,82526.0,0.185132]
[1744386825386,0.0617,82532.0,82526.0,0.185132]
[1744386825586,0.0002218,82527.0,82526.0,0.185132]
[1744386826786,0.0001818,82527.0,82526.0,0.185132]
[1744386828988,0.1214124,82527.0,82526.0,0.121232]
[1744386829886,0.1860124,82527.0,82526.0,0.121232]
[1744386830189,0.0647818,82527.0,82526.0,0.121232]
[1744386831201,0.1324818,82527.0,82526.0,0.121232]
[1744386831798,0.1324818,82527.0,82521.0,0.0682]
[1744386831799,0.1212423,82519.0,82518.0,0.51646246]
[1744386831994,0.12147354,82519.0,82518.0,0.51646246]
[1744386832190,0.00023124,82519.0,82518.0,0.13026246]
[1744386832390,0.25177354,82519.0,82518.0,0.13026246]
[1744386832898,0.25177354,82519.0,82518.0,0.1212438]
[1744386833289,0.32007354,82519.0,82518.0,0.0992438]
[1744386835900,0.13053124,82519.0,82518.0,0.0992438]
[1744386836203,0.1303,82519.0,82518.0,0.1631438]
[1744386836398,0.1303,82519.0,82518.0,0.2295438]
[1744386836790,0.0626,82519.0,82518.0,0.23849306]
[1744386836995,0.06264,82519.0,82518.0,0.66249306]
[1744386838414,0.0001818,82527.0,82526.0,0.121232]
[1744386838716,0.0631818,82527.0,82526.0,0.121232]
[1744386839005,0.06341304,82527.0,82526.0,0.121232]
[1744386839998,0.06341304,82527.0,82526.0,0.248132]
[1744386840706,0.0631818,82527.0,82526.0,0.248132]
[1744386841299,0.0631818,82527.0,82526.0,0.121232]
[1744386841500,0.1844124,82527.0,82526.0,0.121232]
[1744386841698,0.0631818,82527.0,82526.0,0.121232]
[1744386842099,0.18464364,82527.0,82526.0,0.121232]
[1744386843301,0.25114364,82527.0,82526.0,0.121232]
[1744386843808,0.121232,82526.0,82525.0,0.4820329]
[1744386843998,0.12146324,82526.0,82525.0,0.4820329]
[1744386844200,0.25546324,82526.0,82525.0,0.4820329]
[1744386844500,0.0606175,82524.0,82522.0,0.0606187]
[1744386844704,0.00023124,82519.0,82518.0,0.36974926]
[1744386845103,0.12147354,82519.0,82518.0,0.49099136]
[1744386845410,0.18897354,82519.0,82518.0,0.49099136]
[1744386845607,0.1212541,82511.0,82510.0,0.0001818]
[1744386845810,0.12148534,82511.0,82510.0,0.0001818]
[1744386846007,0.12148534,82511.0,82510.0,0.1214374]
[1744386846208,0.00023124,82511.0,82510.0,0.11748943]
[1744386846404,0.18492534,82511.0,82510.0,0.11748943]
[1744386846814,0.25232534,82511.0,82510.0,0.11748943]
[1744386847308,0.25232534,82511.0,82510.0,0.00905203]
[1744386847508,0.25232534,82511.0,82502.0,0.0001818]
[1744386847509,0.1212644,82504.0,82502.0,0.0001818]
[1744386847701,0.12149564,82504.0,82502.0,0.0001818]
[1744386847906,0.25229564,82504.0,82502.0,0.0001818]
[1744386848308,0.25229564,82504.0,82503.0,0.00162791]
[1744386848606,0.86309564,82504.0,82503.0,0.00162791]
[1744386848807,0.1212761,82496.0,82495.0,0.00484875]
[1744386849009,0.48230734,82496.0,82495.0,0.00484875]
[1744386849204,0.48230734,82496.0,82495.0,0.00488875]
[1744386849620,0.54840734,82496.0,82495.0,0.00488875]
[1744386850412,0.121282,82492.0,82486.0,0.35562901]
[1744386850607,0.12151324,82492.0,82486.0,0.35562901]
[1744386851015,0.12151324,82492.0,82491.0,0.40544605]
[1744386851415,0.121282,82492.0,82491.0,0.40548605]
[1744386851818,0.121282,82492.0,82491.0,0.1213235]
[1744386852320,0.184282,82492.0,82491.0,0.1213235]
[1744386853607,0.246182,82492.0,82491.0,0.1213235]
[1744386854720,0.1249,82492.0,82491.0,0.1213235]
[1744386854929,0.1249,82492.0,82491.0,0.3156235]
[1744386855116,0.246182,82492.0,82491.0,0.3156235]
[1744386855310,0.0619,82492.0,82491.0,0.3156235]
[1744386855719,0.0001818,82504.0,82500.0,0.1212703]
[1744386855916,0.005,82510.0,82509.0,0.121257]
[1744386856220,0.005,82510.0,82509.0,0.577417]
[1744386856611,0.00504,82510.0,82509.0,0.703817]
[1744386857017,0.1865423,82519.0,82518.0,0.1212438]
[1744386857322,0.1865423,82519.0,82518.0,0.1838438]
[1744386857618,0.1865423,82519.0,82518.0,0.2476438]
[1744386858319,0.0653,82519.0,82518.0,0.2476438]
[1744386858913,0.1865423,82519.0,82518.0,0.2476438]
[1744386859114,0.0653,82519.0,82518.0,0.2476438]
[1744386859524,0.1306,82519.0,82518.0,0.2476438]
[1744386859925,0.0653,82519.0,82518.0,0.2476438]
[1744386860423,0.1214124,82527.0,82526.0,0.121232]
[1744386860819,0.00041304,82527.0,82526.0,0.121232]
[1744386861319,0.00045304,82527.0,82526.0,0.121232]
[1744386862328,0.00045304,82527.0,82526.0,0.246032]
[1744386862513,0.00045304,82527.0,82526.0,0.182232]
[1744386862713,0.06106874,82527.0,82524.0,0.1212338]
[1744386863016,0.1818627,82520.0,82519.0,0.1212414]
[1744386863919,0.1251,82520.0,82519.0,0.0992414]
[1744386864217,0.0612,82520.0,82519.0,0.10844342]
[1744386864521,0.0612,82520.0,82519.0,0.23554342]
[1744386864722,0.06124,82520.0,82519.0,0.23554342]
[1744386866514,0.06124,82520.0,82519.0,0.10844342]
[1744386866815,0.18271214,82520.0,82519.0,0.10844342]
[1744386867017,0.18271214,82520.0,82519.0,0.00920202]
[1744386867223,0.0606234,82516.0,82512.0,0.01190745]
[1744386867419,0.12148234,82513.0,82512.0,0.13315935]
[1744386867928,0.25108234,82513.0,82512.0,0.01190745]
[1744386868125,0.1212541,82511.0,82510.0,0.0001818]
[1744386868330,0.12148534,82511.0,82510.0,0.0001818]
[1744386868628,0.25108534,82511.0,82510.0,0.0001818]
[1744386869024,0.25112534,82511.0,82510.0,0.0001818]
[1744386871516,0.25108534,82511.0,82510.0,0.0001818]
[1744386871725,0.06224,82511.0,82510.0,0.1214374]
[1744386871930,0.0622,82511.0,82510.0,0.1214374]
[1744386872125,0.06224,82511.0,82510.0,0.2444374]
[1744386873528,0.06224,82511.0,82510.0,0.0001818]
[1744386873529,0.18372534,82511.0,82510.0,0.0001818]
[1744386873926,0.24662534,82511.0,82510.0,0.1214374]
[1744386874120,0.06224,82511.0,82510.0,0.1214374]
[1744386874326,0.06224,82511.0,82510.0,0.2495374]
[1744386874525,0.0622,82511.0,82510.0,0.2495374]
[1744386874829,0.06224,82511.0,82510.0,0.2495374]
[1744386875424,0.1834941,82511.0,82510.0,0.1214374]
[1744386875829,0.18372534,82511.0,82510.0,0.0001818]
[1744386876029,0.24762534,82511.0,82510.0,0.1214374]
[1744386876436,0.24758534,82511.0,82510.0,0.1214374]
[1744386876733,0.12614,82511.0,82510.0,0.1214374]
[1744386877030,0.0622,82511.0,82510.0,0.2524374]
[1744386877231,0.18372534,82511.0,82510.0,0.0001818]
[1744386877830,0.66942534,82511.0,82510.0,0.0001818]
[1744386880726,0.6691941,82511.0,82510.0,0.0001818]
[1744386880933,0.66942534,82511.0,82510.0,0.0001818]
[1744386883235,0.66942534,82511.0,82510.0,0.1214374]
[1744386883439,0.66942534,82511.0,82510.0,0.0001818]
[1744386883630,0.66942534,82511.0,82510.0,0.1214374]
[1744386883935,0.66942534,82511.0,82510.0,0.0001818]
[1744386889535,0.60842534,82511.0,82510.0,0.1214374]
[1744386889928,0.6081541,82511.0,82510.0,0.2521374]
[1744386890128,0.6081941,82511.0,82510.0,0.2521374]
[1744386890439,0.423,82511.0,82510.0,0.2521374]
[1744386890649,0.5442941,82511.0,82510.0,0.2521374]
[1744386890828,0.06224,82511.0,82510.0,0.2521374]
[1744386891034,0.2448689,82518.0,82517.0,0.1212453]
[1744386891230,0.1818689,82518.0,82517.0,0.1212453]
[1744386891439,5.401e-05,82521.0,82520.0,0.1212409]
[1744386891738,5.401e-05,82521.0,82520.0,0.2279409]
[1744386891934,0.1212334,82526.0,82524.0,0.121235]
[1744386892131,0.4215971,82527.0,82526.0,0.121232]
[1744386892132,0.0001818,82527.0,82526.0,0.121232]
[1744386892533,0.0001818,82527.0,82526.0,0.248232]
[1744386892733,0.0002218,82527.0,82526.0,0.248232]